[Event "Czech Open-Rapid 2022"]
[Site "Pardubice"]
[Date "2022.07.20"]
[Round "1.30"]
[White "Sir, Zbynek"]
[Black "Ruzicka, Martin"]
[Result "1-0"]
[ECO "C00"]
[WhiteElo "2199"]
[BlackElo "1923"]
[Annotator "TA"]
[PlyCount "49"]
[EventDate "2022.07.20"]
[EventType "swiss"]
[EventCountry "CZE"]
[SourceTitle "playchess.com"]
[Source "ChessBase"]
[SourceQuality "1"]
[TimeControl "1200+10"]

{[%evp 9,49,110,236,115,295,273,260,164,251,183,199,187,200,58,66,52,40,0,0,0,0,-5,51,45,299,10,758,751,897,714,809,804,1255,1253,29989,29990,29990,29991,29991,29992,29992,29993]} 1. e4 {[%emt 0:00:06]} e6 {[%emt 0:00:34]} 2. d4 {[%emt 0:00:02][%cal Bd2d4,Bd4d5][%mdl 32]} b6 {[%emt 0:00:10]} 3. Bd3 {[%emt 0:00:10]} c5 {[%emt 0:00:00]} 4. d5 {[%emt 0:00:13]} Nf6 {[%emt 0:00:07] [#]} 5. c4 $146 {[%emt 0:00:03]} ({Predecessor:} 5. dxe6 dxe6 6. e5 Nd5 7. Qe2 Nc6 8. c3 Be7 9. f4 g5 10. Nh3 Qc7 11. Nd2 {1-0 (41) Borngaesser,R (2375)-Hickl,T Bremen 1976}) 5... g6 {[%emt 0:00:21]} (5... d6 $16) 6. Nc3 {[%emt 0:01:04] C01: French: Exchange Variation.} (6. e5 $18 {and White stays clearly on top.} Nh5 7. Nc3) 6... Bg7 $2 {[%emt 0:00:19] [#]} (6... d6 $16 {was necessary.}) 7. e5 $18 {[%emt 0:00:20]} Ng8 {[%emt 0:00:20]} 8. f4 {[%emt 0:00:15] White has a decisive advantage.} exd5 {[%emt 0:00:22]} (8... Ne7 $142 9. Be4 exd5 10. cxd5 (10. Nxd5 Nbc6 $14) 10... Nf5) 9. cxd5 {[%emt 0:00:15] Hoping for Ne4.} ({Less strong is} 9. Nxd5 Ne7 $14) 9... d6 {[%emt 0:00:39]} 10. Nf3 {[%emt 0:00:33]} Ne7 {[%emt 0:00:26]} 11. Bb5+ {[%emt 0:01:12]} (11. Ne4 $18 dxe5 12. Bb5+ (12. fxe5 O-O $16) 12... Bd7 13. Nd6+ Kf8 14. fxe5) 11... Bd7 $14 {[%emt 0:00:48]} 12. O-O {[%emt 0:00:27] f5 is the strong threat. White is more active.} O-O $1 {[%emt 0:01:25]} (12... Bxb5 $2 13. Nxb5 O-O 14. Nxd6 $18) 13. Bxd7 {[%emt 0:01:45]} Nxd7 {[%emt 0:00:28]} 14. e6 {[%emt 0:00:26]} fxe6 {[%emt 0:00:57]} 15. Ng5 $1 $36 {[%emt 0:00:12][%mdl 2048] White fights for an advantage.} Nxd5 {[%emt 0:04:27]} ({Better is} 15... exd5 $11 16. Ne6 Qe8) 16. Nxe6 {[%emt 0:01:33]} Bd4+ $2 {[%emt 0:00:57][%mdl 8192]} (16... Nxc3 $14 17. bxc3 Qe7 18. Nxf8 Rxf8) 17. Nxd4 $2 {[%emt 0:01:51]} ({White has to play} 17. Kh1 $18 Qe7 18. Nxf8 (18. Nxd4 Nxc3 19. Nc6 Nxd1 $16)) 17... cxd4 $4 {[%emt 0:00:08][%mdl 8192]} (17... Nxc3 $11 18. bxc3 cxd4) 18. Nxd5 $18 {[%emt 0:00:08]} Nc5 {[%emt 0:01:09]} 19. Qxd4 {[%emt 0:00:06]} Qh4 {[%emt 0:00:46]} 20. b3 {[%emt 0:00:15]} Rae8 {[%emt 0:00:24]} 21. Bb2 {[%emt 0:00:24][%csl Gb2][%cal Rd4g7] [#]} Kf7 {[%emt 0:00:31]} 22. Qg7+ {[%emt 0:00:46] White mates.} Ke6 {[%emt 0:00:03]} 23. Nc7+ {[%emt 0:00:02]} Kf5 {[%emt 0:00:12]} 24. Nxe8 {[%emt 0:00:04]} Rxe8 {[%emt 0:00:25]} 25. Qf7+ {[%emt 0:00:05] Weighted Error Value: White=0.58/Black=1.01} 1-0

[Event "Czech Open-Rapid 2022"]
[Site "Pardubice"]
[Date "2022.07.20"]
[Round "1.31"]
[White "Koska, Jiri"]
[Black "Vokoun, Jan"]
[Result "1-0"]
[ECO "A04"]
[WhiteElo "1856"]
[BlackElo "2056"]
[Annotator "TA"]
[PlyCount "87"]
[EventDate "2022.07.20"]
[EventType "swiss"]
[EventCountry "CZE"]
[SourceTitle "playchess.com"]
[Source "ChessBase"]
[SourceQuality "1"]
[TimeControl "1200+10"]

{[%evp 14,87,0,2,22,0,3,-20,-22,-16,-17,-20,-2,-16,-11,-23,-14,-25,-24,-39,-38,-51,-39,-35,-33,-30,-37,-83,-74,-75,-70,-194,-187,-185,-179,-198,-204,-233,-152,-231,-226,-229,-233,-233,-217,-228,-222,-250,-208,-235,-163,-220,-216,-218,-225,-216,-214,-208,-191,-218,-217,-313,-307,-337,-297,-331,-328,-303,-239,-237,-95,-95,29997,29998,29998,29999]} 1. Nf3 {[%emt 0:00:03]} c5 {[%emt 0:00:42]} 2. g3 {[%emt 0:00:02]} b6 {[%emt 0:00:49]} 3. Bg2 {[%emt 0:00:10]} Bb7 {[%emt 0:00:01]} 4. O-O {[%emt 0:00:04]} Nf6 {[%emt 0:00:12]} 5. d3 {[%emt 0:00:07]} e6 {[%emt 0:01:05]} 6. e4 {[%emt 0:01:04]} d6 {[%emt 0:00:05]} 7. Nbd2 {[%emt 0:00:19]} Be7 {[%emt 0:00:22]} 8. Re1 {[%emt 0:00:05]} Nbd7 {[%emt 0:00:16] A05: Réti Opening: 1 Nf3 Nf6.} 9. e5 {[%emt 0:04:07]} dxe5 {[%emt 0:00:12]} 10. Nxe5 {[%emt 0:00:01]} (10. b3 {seems wilder.} Qc7 11. Bb2 O-O 12. Qe2) 10... Bxg2 {[%emt 0:00:03] The position is equal.} 11. Kxg2 {[%emt 0:00:02]} Nxe5 {[%emt 0:00:36]} 12. Rxe5 {[%emt 0:00:03]} Qc7 {[%emt 0:00:14]} 13. Re1 {[%emt 0:00:30]} (13. Qf3 $5 {[%cal Rf3a8]} O-O 14. Re2 $11) 13... O-O {[%emt 0:00:17] [#]} 14. Kg1 $146 {[%emt 0:02:33]} ({Predecessor:} 14. Qf3 Rfd8 15. Nc4 Nd5 16. c3 Bf6 17. a4 a6 18. Nd2 h6 19. Ne4 Be7 20. h4 {1-0 (40) Vlachos,A (2410)-Strybuk,A (2296) Chess.com INT 2022}) 14... Rfd8 {[%emt 0:00:13]} 15. Qf3 {[%emt 0:00:26]} Rac8 {[%emt 0:00:57]} 16. Ne4 {[%emt 0:04:16]} Nd5 {[%emt 0:02:00][%cal Bf6d5,Bd5c7,Bc7b5,Bb5d4][%mdl 32]} 17. a3 {[%emt 0:01:50]} Qd7 {[%emt 0:03:14]} 18. Qe2 {[%emt 0:03:14]} Nc7 {[%emt 0:01:43]} 19. Be3 {[%emt 0:01:27]} Nb5 {[%emt 0:00:23]} 20. Red1 {[%emt 0:00:38] [#]} (20. Nd2 $15) 20... Nd4 $1 $17 {[%emt 0:00:12]} 21. Bxd4 {[%emt 0:00:01]} cxd4 {[%emt 0:00:01]} 22. c3 {[%emt 0:00:49]} (22. Rdc1 $15) 22... f5 $19 {[%emt 0:00:48]} 23. Nd2 {[%emt 0:01:03]} dxc3 {[%emt 0:00:01]} 24. bxc3 {[%emt 0:00:01]} Rxc3 {[%emt 0:00:25]} 25. Nc4 {[%emt 0:00:12]} Bf6 {[%emt 0:02:04]} 26. Re1 {[%emt 0:00:46]} (26. Rac1 $17 {was necessary.}) 26... Rxd3 {[%emt 0:00:35]} 27. Ne5 {[%emt 0:00:31]} Bxe5 {[%emt 0:01:04]} 28. Qxe5 {[%emt 0:00:01]} Rd6 {[%emt 0:00:08]} 29. Rac1 {[%emt 0:00:05]} h6 {[%emt 0:02:24]} 30. Rb1 {[%emt 0:00:25]} Qb7 {[%emt 0:00:25]} 31. a4 {[%emt 0:00:01]} Qd5 {[%emt 0:00:20]} 32. Qe3 {[%emt 0:00:09]} (32. Qxd5 $142 exd5 33. Kf1) 32... Kf7 {[%emt 0:00:09]} 33. Ra1 {[%emt 0:00:03]} Rc8 {[%emt 0:00:19]} 34. a5 {[%emt 0:00:03]} Rc4 {[%emt 0:00:46]} 35. axb6 {[%emt 0:00:06]} axb6 {[%emt 0:00:01]} 36. Ra7+ {[%emt 0:00:26]} Kg6 {[%emt 0:00:01]} 37. Raa1 {[%emt 0:00:13]} (37. Qa3 $142) 37... Re4 {[%emt 0:00:08]} 38. Qc3 {[%emt 0:00:02]} Rxe1+ {[%emt 0:00:45]} 39. Rxe1 {[%emt 0:00:01] KQR-KQR} Rc6 {[%emt 0:00:09]} 40. Qb2 {[%emt 0:00:14]} Kf7 {[%emt 0:00:19]} 41. Ra1 {[%emt 0:00:06][%cal Be1a1,Ba1a7,Ba7g7][%mdl 32]} Rd6 {[%emt 0:00:15]} (41... Qd7 $19 {[%cal Ob6b5] Strongly threatening ...b5!} 42. Rb1 Rd6) 42. Ra7+ $17 {[%emt 0:00:05]} Kg6 $2 {[%emt 0:00:00][%mdl 8192] [#]} (42... Rd7 $17 43. Qxb6 Rxa7 44. Qxa7+ Kf6) 43. Rxg7+ {[%emt 0:00:12]} Kh5 {[%emt 0:00:01]} 44. Qe2+ {[%emt 0:00:03] White used his chance.  Weighted Error Value: White=0.21 (precise) /Black=0.35} 1-0

[Event "Czech Open-Rapid 2022"]
[Site "Pardubice"]
[Date "2022.07.20"]
[Round "1.32"]
[White "Silar, Lubomir"]
[Black "Nyc Voldanova, Barbora"]
[Result "1-0"]
[ECO "A40"]
[WhiteElo "1993"]
[BlackElo "1438"]
[Annotator "TA"]
[PlyCount "51"]
[EventDate "2022.07.20"]
[EventType "swiss"]
[EventCountry "CZE"]
[SourceTitle "playchess.com"]
[Source "ChessBase"]
[SourceQuality "1"]
[TimeControl "1200+10"]

{[%evp 14,50,0,-6,10,0,36,33,127,100,305,-4,54,62,102,114,209,216,637,624,616,605,727,418,410,386,673,673,1102,646,636,634,29981,29982,29982,29983,29998,29999,29999]} 1. d4 {[%emt 0:00:05]} e6 {[%emt 0:00:01]} 2. e4 {[%emt 0:00:06]} b6 {[%emt 0:00:15]} 3. Bd3 {[%emt 0:00:06]} Bb7 {[%emt 0:00:02]} 4. Nc3 {[%emt 0:00:05]} Nf6 {[%emt 0:00:05]} 5. Nf3 {[%emt 0:00:38]} Bb4 {[%emt 0:00:04]} 6. Qe2 {[%emt 0:00:03]} d5 {[%emt 0:01:18]} 7. e5 {[%emt 0:00:18]} Ne4 {[%emt 0:00:34]} 8. Bd2 {[%emt 0:00:02][%cal Rc3e4]} (8. Bxe4 $2 dxe4 9. Ng5 (9. Qb5+ $2 Nc6 $19) 9... Qxd4 $17) 8... Nxc3 {[%emt 0:00:35] B00: Queen's Fianchetto Defence, Nimzowitsch Defence.} 9. bxc3 {[%emt 0:00:05] [#]} Ba3 $146 {[%emt 0:01:22]} ({Predecessor:} 9... Be7 10. h4 h6 11. Ng1 c5 12. Qg4 Bf8 13. Nh3 Nc6 14. Nf4 cxd4 15. cxd4 Nxd4 16. Ng6 fxg6 17. Bxg6+ {1-0 (48) Sharashenidze,A (2304)-Blatny,P (2414) Austria 2015}) 10. O-O {[%emt 0:00:09]} Nd7 {[%emt 0:02:53]} ({Better is} 10... Be7 $14) 11. Ng5 $1 $16 {[%emt 0:02:16] Hoping for f4.} h6 $2 {[%emt 0:00:33] [#]} (11... Qe7 $16) 12. Nh3 $2 {[%emt 0:00:55]} (12. Qh5 $1 $18 {[%csl Gg5][%cal Rh5f7]} O-O 13. Nf3 (13. Bh7+ Kh8 $11)) 12... c5 {[%emt 0:03:12]} (12... Qe7 $1 $11) 13. Qg4 $1 $36 {[%emt 0:00:37][%mdl 2048] White fights for an advantage.} Kf8 {[%emt 0:03:18]} (13... g5 $2 14. Qh5 Qe7 {[#]} 15. Bxg5 $1 $18 {[%mdl 512]}) 14. f4 {[%emt 0:00:58] Strongly threatening f5. 0x0.001680f72cabdp-1022s more active pieces.} cxd4 {[%emt 0:00:36]} (14... f5 $16 {was necessary.} 15. exf6 Nxf6 16. Qxe6 Qe7 17. Qxe7+ Kxe7) 15. cxd4 $18 {[%emt 0:00:18] f5 is the strong threat.} Bb2 $2 {[%emt 0:00:09]} (15... f5 16. exf6 Nxf6 17. Qxe6 Qd6) 16. f5 {[%emt 0:00:19]} exf5 {[%emt 0:01:30]} 17. Bxf5 {[%emt 0:05:37]} Bxa1 {[%emt 0:01:57]} 18. Rxa1 {[%emt 0:00:30]} Bc8 {[%emt 0:00:45]} 19. Rf1 {[%emt 0:03:05]} a5 $2 {[%emt 0:03:02]} (19... Kg8 20. Nf4 Qg5) 20. Nf4 {[%emt 0:00:28]} Qe7 {[%emt 0:00:47]} 21. Nxd5 {[%emt 0:01:22]} Qd8 {[%cal Od7e5]} 22. e6 {[%emt 0:01:27]} fxe6 {[%emt 0:00:38]} 23. Bxe6+ {[%emt 0:00:36] White mates.} Nf6 {[%emt 0:00:02] [#]} 24. Rxf6+ $1 {[%emt 0:00:54][%mdl 512]} gxf6 {[%emt 0:00:04] [#]} (24... Qxf6 25. Nxf6) 25. Bxh6+ $1 {[%emt 0:00:05][%mdl 512] This bishop pair is nice.} Ke8 {[%emt 0:00:02]} 26. Qg6# {[%emt 0:00:07] Weighted Error Value: White=0.58/Black=1.09} 1-0

[Event "Czech Open-Rapid 2022"]
[Site "Pardubice"]
[Date "2022.07.20"]
[Round "1.33"]
[White "Kutek, Jiri"]
[Black "Schatz, Christian"]
[Result "0-1"]
[ECO "B05"]
[WhiteElo "1627"]
[BlackElo "2137"]
[Annotator "TA"]
[PlyCount "90"]
[EventDate "2022.07.20"]
[EventType "swiss"]
[EventCountry "CZE"]
[SourceTitle "playchess.com"]
[Source "ChessBase"]
[SourceQuality "1"]
[TimeControl "1200+10"]

{[%evp 25,90,39,46,22,39,32,39,35,37,38,32,6,3,-137,-100,-108,-104,-116,-131,-147,-111,-108,-111,-217,-214,-275,-285,-285,-283,-326,-320,-335,-323,-384,-383,-418,-418,-408,-372,-435,-432,-436,-439,-418,-441,-1076,-497,-900,-891,-873,-510,-939,-954,-1206,-1186,-1461,-1042,-1012,-953,-906,-622,-612,-607,-698,-705,-29990,-29991]} 1. e4 {[%emt 0:00:02][%cal Be2e4,Be4e5][%mdl 32]} Nf6 {[%emt 0:00:06]} 2. e5 {[%emt 0:00:02]} Nd5 {[%emt 0:00:01]} 3. Nf3 {[%emt 0:00:09]} d6 {[%emt 0:00:03]} 4. d4 {[%emt 0:00:32]} Bg4 {[%emt 0:00:14]} 5. Be2 {[%emt 0:00:06]} e6 {[%emt 0:00:05]} 6. O-O {[%emt 0:00:07]} Be7 {[%emt 0:00:06]} 7. h3 {[%emt 0:00:05]} Bh5 {[%emt 0:00:03]} 8. c4 {[%emt 0:00:25]} Nb6 {[%emt 0:00:02]} 9. b3 {[%emt 0:00:09]} O-O {[%emt 0:00:08]} 10. Nc3 {[%emt 0:00:14]} Nc6 {[%emt 0:00:22]} 11. exd6 {[%emt 0:01:31]} cxd6 {[%emt 0:00:03]} 12. Be3 {[%emt 0:00:14]} d5 {[%emt 0:00:19]} 13. c5 {[%emt 0:03:05]} Nc8 {[%emt 0:00:08][%cal Bb6c8,Bc8e7,Be7f5,Bf5e3][%mdl 32] The main line 13...Nc8 scores better than 13...Nd7.} 14. a3 {[%emt 0:01:29] [#] is the legacy move (14.Rb1). B05: Alekhine's Defence: 4 Nf3 Bg4.} a6 $146 {[%emt 0:03:03]} ({Predecessor:} 14... Bxf3 15. Bxf3 Bf6 16. Rc1 N8e7 17. g4 Bh4 18. Bg2 g5 19. f4 gxf4 20. Bxf4 Ng6 21. Be3 Bg5 {½-½ (67) Bacallao Alonso,Y (2580)-Hernandez Carmenates,H (2570) Havana 2012}) 15. Nh2 {[%emt 0:03:08]} Bxe2 {[%emt 0:00:37]} 16. Qxe2 {[%emt 0:00:22] White is slightly better.} Bf6 {[%emt 0:00:59]} 17. Rfd1 {[%emt 0:00:34]} N8e7 {[%emt 0:00:23]} 18. Ng4 {[%emt 0:00:49]} Nf5 {[%emt 0:00:20][%cal Rf6d4]} 19. Rab1 {[%emt 0:03:32]} (19. Nxf6+ $11 {was the only way to keep the balance.} Qxf6 20. Qf3) 19... Ncxd4 {[%emt 0:02:48]} 20. Qd3 {[%emt 0:01:17]} Nxe3 {[%emt 0:01:01]} 21. fxe3 {[%emt 0:00:05] [#]} Nc6 $1 {[%emt 0:00:30]} 22. Ne2 {[%emt 0:00:18]} Ne5 {[%emt 0:00:50]} 23. Nxe5 {[%emt 0:00:25]} Bxe5 {[%emt 0:00:02]} 24. Nf4 {[%emt 0:00:45]} (24. b4 $17 {might work better.}) 24... Qc7 $19 {[%emt 0:00:48][%csl LRc5,LRf4]} 25. Ne2 {[%emt 0:02:44]} Qxc5 {[%emt 0:00:24]} 26. b4 {[%emt 0:00:02]} Qb5 {[%emt 0:01:44]} 27. Qd2 {[%emt 0:00:32]} Rac8 {[%emt 0:00:19]} 28. Rdc1 {[%emt 0:00:24]} Rc4 {[%emt 0:01:00]} 29. Rxc4 {[%emt 0:00:42]} dxc4 {[%emt 0:00:05]} (29... Qxc4 $2 {too greedy.} 30. Nf4 $19) 30. Nc3 {[%emt 0:00:22]} Qc6 {[%emt 0:01:24]} 31. Rd1 {[%emt 0:00:22]} g6 {[%emt 0:00:47]} 32. Kf2 {[%emt 0:00:30]} Bf6 {[%emt 0:00:58][%cal Be5f6,Bf6e7,Be7h4][%mdl 32]} 33. Qc2 {[%emt 0:00:21]} b5 {[%emt 0:00:49]} 34. Ne4 {[%emt 0:00:05]} Be7 {[%emt 0:00:07]} 35. Qc3 {[%emt 0:00:18]} (35. Nd2 $142) 35... f5 {[%emt 0:00:06]} (35... Qxe4 $142 36. Rd7 Bh4+ 37. g3 Qf5+ 38. Ke2 Bxg3) 36. Ng3 {[%emt 0:00:09]} (36. Nc5 $142 f4 37. exf4 Rxf4+ 38. Kg1) 36... Bh4 {[%emt 0:00:57] [#] ...Qc7 is the strong threat.} 37. Qd4 {[%emt 0:00:07]} Bf6 {[%emt 0:00:32]} 38. Qd2 {[%emt 0:00:05]} (38. Qd7 $142 Qxd7 39. Rxd7) 38... c3 {[%emt 0:00:14]} 39. Qc2 {[%emt 0:00:01]} Bh4 {[%emt 0:00:09] And now ...f4 would win.} 40. Rd3 {[%emt 0:00:14]} f4 {[%emt 0:00:08]} 41. exf4 {[%emt 0:00:04]} Rxf4+ {[%emt 0:00:02]} 42. Kg1 {[%emt 0:00:02]} Rc4 {[%emt 0:00:27]} 43. Ne2 {[%emt 0:00:12]} Qb6+ {[%emt 0:00:09]} 44. Kh1 {[%emt 0:00:04]} Qf2 {[%emt 0:00:06]} 45. Rd8+ {[%emt 0:00:20]} Bxd8 {Weighted Error Value: White=0.97/Black=0.42} 0-1

[Event "Czech Open-Rapid 2022"]
[Site "Pardubice"]
[Date "2022.07.20"]
[Round "1.34"]
[White "Gressmann, Moritz"]
[Black "Krejci, Jan"]
[Result "1-0"]
[ECO "C00"]
[WhiteElo "2114"]
[BlackElo "2511"]
[Annotator "TA"]
[PlyCount "36"]
[EventDate "2022.07.20"]
[EventType "swiss"]
[EventCountry "CZE"]
[SourceTitle "playchess.com"]
[Source "ChessBase"]
[SourceQuality "1"]
[TimeControl "1200+10"]

{[%evp 9,36,-20,-29,-17,9,-6,11,-26,-14,-24,-8,-17,47,41,89,79,112,90,107,76,144,145,181,141,105,136,223,11,200]} 1. e4 {[%emt 0:00:03]} e6 {[%emt 0:00:01]} 2. c4 {[%emt 0:00:01]} c6 {[%emt 0:00:16]} 3. e5 {[%emt 0:00:09]} d6 4. exd6 {[%emt 0:00:09]} Bxd6 {[%emt 0:00:29]} 5. d4 {[%emt 0:00:04]} Nf6 {[%emt 0:00:49]} 6. Nf3 {[%emt 0:00:05] [#] B10: Caro-Kann: 2 d3 and 2 c4.} b6 $146 {[%emt 0:01:25]} ({Predecessor:} 6... Nbd7 7. Nc3 O-O 8. Be2 e5 9. O-O exd4 10. Qxd4 Qc7 11. Rd1 Bc5 12. Qh4 Nb6 {1-0 (26) Stjazhkina,O (2207)-Talmaci,A (1696) Varna 2014}) 7. Nc3 {[%emt 0:00:15]} Bb7 {[%emt 0:00:47]} 8. Be2 {[%emt 0:00:41]} Nbd7 {[%emt 0:00:10]} 9. Bg5 {[%emt 0:00:14]} h6 {[%emt 0:00:18]} 10. Bh4 {[%emt 0:00:02]} g5 {[%emt 0:01:00]} ({Black should play} 10... O-O $11) 11. Bg3 $14 {[%emt 0:00:02]} Bxg3 {[%emt 0:00:57]} (11... Qc7 $14 {should be considered.}) 12. hxg3 $16 {[%emt 0:00:02]} Qe7 {[%emt 0:00:43]} 13. Nxg5 $1 {[%emt 0:00:30]} O-O-O {[%emt 0:00:42] [#]} 14. Nf3 {[%emt 0:00:37] White is more active.} e5 {[%emt 0:02:44]} (14... c5 $142) 15. O-O {[%emt 0:01:36]} h5 {[%emt 0:03:12][%cal Oh5h4]} 16. Qa4 {[%emt 0:02:40] aiming for dxe5.} exd4 {[%emt 0:02:15]} 17. Nxd4 {[%emt 0:00:12]} Qc5 {[%emt 0:06:38]} (17... Kb8 $16 {is a better defense.}) 18. Nb3 $2 {[%emt 0:00:32] [#]} (18. Rad1 $18 {b4 is the strong threat.} a5 19. Qc2) 18... Qe7 $2 {Weighted Error Value: White=0.41/Black=0.33} (18... Qg5 $1 $11 {and Black stays safe.}) 1-0

[Event "Czech Open-Rapid 2022"]
[Site "Pardubice"]
[Date "2022.07.20"]
[Round "1.35"]
[White "Vetter, Udo"]
[Black "Polak, Benedikt"]
[Result "0-1"]
[ECO "A37"]
[WhiteElo "1423"]
[BlackElo "2120"]
[Annotator "TA"]
[PlyCount "72"]
[EventDate "2022.07.20"]
[EventType "swiss"]
[EventCountry "CZE"]
[SourceTitle "playchess.com"]
[Source "ChessBase"]
[SourceQuality "1"]
[TimeControl "1200+10"]

{[%evp 19,72,0,0,0,49,0,-5,-16,-18,-27,0,0,0,-41,-30,-29,0,-17,-16,-86,-81,-79,-72,-89,-77,-102,-104,-119,-97,-110,-114,-104,-71,-527,-356,-337,-333,-999,-994,-837,-936,-1378,-1158,-1907,-2020,-29979,-29980,-29978,-29975,-6235,-5034,-1456,-1019,-29962,-10938]} 1. c4 {[%emt 0:00:04]} c5 {[%emt 0:00:11]} 2. Nf3 {[%emt 0:00:10]} Nc6 {[%emt 0:00:07]} 3. Nc3 {[%emt 0:00:10]} g6 {[%emt 0:00:21]} 4. g3 {[%emt 0:00:31]} Bg7 {[%emt 0:00:05]} 5. Bg2 {[%emt 0:00:23]} e6 {[%emt 0:00:06]} 6. O-O {[%emt 0:00:54]} Nge7 {[%emt 0:00:05]} 7. e3 {[%emt 0:00:53]} O-O {[%emt 0:00:15]} 8. d4 {[%emt 0:00:47]} cxd4 {[%emt 0:00:07]} 9. exd4 {[%emt 0:00:24]} d5 {[%emt 0:00:46]} 10. cxd5 {[%emt 0:00:57]} Nxd5 {[%emt 0:00:03]} 11. Re1 {[%emt 0:00:36] A37: Symmetrical English vs ...g6: 4 Bg2 Bg7 5 Nf3.} Nb6 {[%emt 0:03:26] [#]} (11... Qb6 $11) 12. Be3 $146 {[%emt 0:01:20]} (12. Bg5 $14 f6 13. Be3) ({Predecessor:} 12. Bg5 Qd6 13. Ne4 Qb4 14. b3 Nd5 15. Rc1 h6 16. Rc4 Qb6 17. Bc1 Rd8 18. Qe2 Nde7 {½-½ (43) Mihir Lal,D (1988)-Masum,H (2028) Dhaka 2022}) 12... Nc4 $11 {[%emt 0:00:19]} 13. Rb1 {[%emt 0:00:47] The position is equal.} Nxe3 {[%emt 0:00:57]} 14. fxe3 {[%emt 0:00:43]} Qa5 {[%emt 0:00:50]} 15. Qb3 {[%emt 0:01:18]} Rd8 {[%emt 0:00:51]} 16. Qb5 {[%emt 0:00:57]} Qc7 {[%emt 0:02:30]} 17. Rbc1 {[%emt 0:00:30]} a6 {[%emt 0:00:59]} (17... Bd7 $5 {[%cal Rc6d4]}) 18. Qe2 {[%emt 0:00:40]} Qe7 {[%emt 0:01:03]} 19. Ne4 {[%emt 0:00:29]} (19. a3 $11 {keeps the balance.}) 19... e5 $17 {[%emt 0:00:29]} 20. dxe5 {[%emt 0:01:06]} Nxe5 {[%emt 0:01:49]} 21. Nd4 {[%emt 0:00:30]} Bg4 {[%emt 0:00:28]} 22. Qc2 {[%emt 0:00:43]} Rac8 {[%emt 0:01:34]} 23. Qb3 {[%emt 0:00:34]} Bh6 {[%emt 0:00:20][%cal Bg7h6,Bh6c1,Bc1b2,Bb2e5][%mdl 32] A strong pair of Bishops.} 24. h3 {[%emt 0:00:57]} Rxc1 {[%emt 0:02:32]} 25. Rxc1 {[%emt 0:00:20]} Bf5 $36 {[%emt 0:00:01][%mdl 2048] White is under strong pressure.} 26. Nc5 {[%emt 0:00:33][%mdl 8192] [#] White does not recover from this.} (26. Nxf5 $17 gxf5 27. Nf2) 26... Rxd4 {[%emt 0:00:35]} 27. exd4 {[%emt 0:00:32]} Bxc1 {[%emt 0:00:05]} 28. dxe5 {[%emt 0:00:14]} (28. Qc3 Qg5 29. dxe5) 28... Qxc5+ $19 {[%emt 0:00:05]} 29. Kh2 {[%emt 0:00:34]} b5 {[%emt 0:00:20]} 30. Qf3 {[%emt 0:00:43]} Bxb2 {[%emt 0:00:26]} 31. Qa8+ {[%emt 0:01:16]} Kg7 {[%emt 0:00:01]} 32. Qxa6 {[%emt 0:00:24]} Bxe5 {[%emt 0:00:13]} 33. Qb7 {[%emt 0:00:43]} Qf2 {[%emt 0:01:08][%csl LRa2,LRg3]} 34. Qf3 {[%emt 0:00:20]} Qxf3 {[%emt 0:00:16]} 35. Bxf3 {[%emt 0:00:02]} b4 {[%emt 0:00:07] [#] ( -> ...Be6)} 36. Kg2 {[%emt 0:00:11]} Be6 {[%emt 0:00:04] Weighted Error Value: White=1.45/Black=0.47} 0-1

[Event "Czech Open-Rapid 2022"]
[Site "Pardubice"]
[Date "2022.07.20"]
[Round "1.36"]
[White "Ptacek, Lubos"]
[Black "Koupil, Stepan"]
[Result "0-1"]
[ECO "C54"]
[WhiteElo "2049"]
[BlackElo "1450"]
[Annotator "TA"]
[PlyCount "36"]
[EventDate "2022.07.20"]
[EventType "swiss"]
[EventCountry "CZE"]
[SourceTitle "playchess.com"]
[Source "ChessBase"]
[SourceQuality "1"]
[TimeControl "1200+10"]

{[%evp 13,36,47,50,30,56,35,48,3,62,69,104,83,200,205,203,70,81,46,75,-29991,-29992,-29992,-29993,-29998,-29999]} 1. e4 {[%emt 0:00:00]} e5 {[%emt 0:00:00]} 2. Nf3 {[%emt 0:00:00]} Nc6 {[%emt 0:00:00]} 3. Bc4 {[%emt 0:00:00]} Bc5 {[%emt 0:00:02]} 4. c3 {[%emt 0:00:00]} Nf6 {[%emt 0:00:02]} 5. d3 {[%emt 0:00:08]} O-O {[%emt 0:00:27]} 6. b4 {[%emt 0:00:04]} Bb6 {[%emt 0:00:26] 6...Be7 gains popularity.} 7. a4 {[%emt 0:00:03]} a6 {[%emt 0:00:38]} 8. O-O {[%emt 0:00:23] C54: Giuoco Piano: 4 c3 Nf6, main lines with 5 d4 and 5 d3.} d5 {[%emt 0:00:29] has lost popularity (8...d6).} 9. exd5 {[%emt 0:00:13]} Nxd5 {[%emt 0:00:03]} 10. h3 {[%emt 0:00:43] Inhibits Bg4. White is slightly better.} (10. Qb3 $5 {[%cal Rc4d5]} Nf6 11. a5 $11) 10... Re8 {[%emt 0:01:11] [#]} (10... h6 $11) 11. Qb3 $146 {[%emt 0:00:03]} ({Predecessor:} 11. Re1 Ba7 12. Bb2 Nf6 13. Nbd2 Bf5 14. b5 Na5 15. Ba2 e4 16. dxe4 Nxe4 17. Nxe4 Bxe4 {0-1 (24) Blauhut,A (1156)-Dingertz,F (1111) Sarpsborg 2019}) 11... Be6 {[%emt 0:00:39]} 12. Ng5 {[%emt 0:00:03]} Nf4 {[%emt 0:00:20]} (12... a5 $16 {might work better.}) 13. Bxf4 $18 {[%emt 0:00:15]} exf4 {[%emt 0:02:18][%cal Be5f4,Bf4f3][%mdl 32]} 14. Bxe6 {[%emt 0:01:02]} (14. Nxe6 $18 fxe6 15. a5 (15. Bxe6+ Kh8 $16)) 14... Qxg5 $14 {[%emt 0:02:51]} (14... fxe6 $2 15. Nxe6 Rxe6 16. Qxe6+ $18) 15. Bxf7+ {[%emt 0:00:58]} Kh8 {[%emt 0:00:58][%cal Of4f3] ( -> ...f3!)} 16. Bxe8 $4 {[%emt 0:00:20][%mdl 8192]} (16. Qd1 $16 f3 17. Qxf3) 16... f3 $1 {[%emt 0:00:30][%csl Gf3][%cal Rg5g2] Black mates.} 17. g4 {[%emt 0:01:04] [#]} Qh4 $1 {[%emt 0:01:32]} 18. Qf7 {[%emt 0:05:23]} Qg3+ $1 {[%emt 0:01:04] Weighted Error Value: White=0.77/Black=0.27 (precise)} 0-1